[Event "Titled Tuesday Blitz May 16 Late 2023"]
[White "Wu, Derek"]
[Black "Zhigalko, Sergei"]
[WhiteFideId "30914558"]
[BlackFideId "13502956"]
[WhiteElo "2174"]
[BlackElo "2626"]
[Result "0-1"]
[Round "05"]
[TimeControl "180+2"]
[Date "2023.05.16"]
[WhiteClock "0:00:09"]
[BlackClock "0:00:07"]

1. d4 {[%clk 0:03:00]}  Nf6 {[%clk 0:02:57]} 2. Nc3 {[%clk 0:02:59]}  d5 {[%clk 0:02:57]} 3. Bf4 {[%clk 0:02:59]}  a6 {[%clk 0:02:57]} 4. e3 {[%clk 0:02:59]}  e6 {[%clk 0:02:56]} 5. g4 {[%clk 0:02:56]}  c5 {[%clk 0:02:53]} 6. g5 {[%clk 0:02:55]}  Nfd7 {[%clk 0:02:53]} 7. Qg4 {[%clk 0:02:56]}  Nc6 {[%clk 0:02:50]} 8. O-O-O {[%clk 0:02:55]}  b5 {[%clk 0:02:46]} 9. Qg3 {[%clk 0:02:52]}  Qb6 {[%clk 0:02:34]} 10. Bg2 {[%clk 0:02:47]}  b4 {[%clk 0:02:05]} 11. Nxd5 {[%clk 0:02:30]}  exd5 {[%clk 0:02:04]} 12. Bxd5 {[%clk 0:02:31]}  Bb7 {[%clk 0:01:57]} 13. Nf3 {[%clk 0:02:18]}  Be7 {[%clk 0:01:40]} 14. Bc7 {[%clk 0:02:11]}  Qb5 {[%clk 0:01:40]} 15. Qf4 {[%clk 0:01:56]}  O-O {[%clk 0:01:35]} 16. h4 {[%clk 0:01:53]}  cxd4 {[%clk 0:01:30]} 17. Be4 {[%clk 0:01:46]}  Rac8 {[%clk 0:01:07]} 18. h5 {[%clk 0:01:18]}  f5 {[%clk 0:00:36]} 19. Bd3 {[%clk 0:00:56]}  Qd5 {[%clk 0:00:36]} 20. b3 {[%clk 0:00:45]}  Nce5 {[%clk 0:00:14]} 21. Nxe5 {[%clk 0:00:36]}  Rxc7 {[%clk 0:00:13]} 22. Ng6 {[%clk 0:00:36]}  Bd6 {[%clk 0:00:09]} 23. Ne7+ {[%clk 0:00:33]}  Bxe7 {[%clk 0:00:06]} 24. Qxc7 {[%clk 0:00:34]}  Rc8 {[%clk 0:00:05]} 25. Qxc8+ {[%clk 0:00:27]}  Bxc8 {[%clk 0:00:04]} 26. Bc4 {[%clk 0:00:28]}  Qxc4 {[%clk 0:00:02]} 27. bxc4 {[%clk 0:00:29]}  dxe3 {[%clk 0:00:02]} 28. f4 {[%clk 0:00:20]}  Bc5 {[%clk 0:00:02]} 29. Rd5 {[%clk 0:00:20]}  Kf7 {[%clk 0:00:02]} 30. Rxf5+ {[%clk 0:00:17]}  Ke6 {[%clk 0:00:02]} 31. Rd5 {[%clk 0:00:17]}  Bb7 {[%clk 0:00:02]} 32. f5+ {[%clk 0:00:15]}  Ke7 {[%clk 0:00:02]} 33. f6+ {[%clk 0:00:13]}  gxf6 {[%clk 0:00:03]} 34. gxf6+ {[%clk 0:00:14]}  Kxf6 {[%clk 0:00:02]} 35. Rf1+ {[%clk 0:00:12]}  Ke6 {[%clk 0:00:03]} 36. Rg5 {[%clk 0:00:12]}  Bd4 {[%clk 0:00:03]} 37. Re1 {[%clk 0:00:11]}  Ne5 {[%clk 0:00:02]} 38. Re2 {[%clk 0:00:09]}  Bf3 {[%clk 0:00:02]} 39. Re1 {[%clk 0:00:09]}  Nxc4 {[%clk 0:00:02]} 40. h6 {[%clk 0:00:08]}  Bc3 {[%clk 0:00:02]} 41. Reg1 {[%clk 0:00:07]}  e2 {[%clk 0:00:02]} 42. R5g3 {[%clk 0:00:07]}  Bd2+ {[%clk 0:00:02]} 43. Kb1 {[%clk 0:00:07]}  Be4 {[%clk 0:00:03]} 44. a4 {[%clk 0:00:06]}  Na3+ {[%clk 0:00:02]} 45. Ka2 {[%clk 0:00:06]}  Nxc2 {[%clk 0:00:03]} 46. Kb3 {[%clk 0:00:06]}  e1=Q {[%clk 0:00:03]} 47. Rxe1 {[%clk 0:00:06]}  Nxe1 {[%clk 0:00:04]} 48. Rg4 {[%clk 0:00:06]}  Kd5 {[%clk 0:00:04]} 49. Rg7 {[%clk 0:00:06]}  Nd3 {[%clk 0:00:04]} 50. a5 {[%clk 0:00:06]}  Nc5+ {[%clk 0:00:04]} 51. Kb2 {[%clk 0:00:07]}  Bc3+ {[%clk 0:00:04]} 52. Kc1 {[%clk 0:00:07]}  b3 {[%clk 0:00:04]} 53. Rg8 {[%clk 0:00:05]}  b2+ {[%clk 0:00:04]} 54. Kd1 {[%clk 0:00:06]}  b1=Q+ {[%clk 0:00:05]} 55. Ke2 {[%clk 0:00:07]}  Qd3+ {[%clk 0:00:06]} 56. Kf2 {[%clk 0:00:08]}  Qf3+ {[%clk 0:00:06]} 57. Kg1 {[%clk 0:00:08]}  Bd4+ {[%clk 0:00:06]} 58. Kh2 {[%clk 0:00:08]}  Qh1+ {[%clk 0:00:07]} 59. Kg3 {[%clk 0:00:09]}  Be5+ {[%clk 0:00:07]} 60. Kf2 {[%clk 0:00:09]}  Nd3+ {[%clk 0:00:07]} 61. Ke3 {[%clk 0:00:09]}  Qe1# {[%clk 0:00:07]} 0-1


[Site "https://www.chess.com"]

[Event "Titled Tuesday Blitz May 16 Late 2023"]
[White "Hakobyan, Aram"]
[Black "Badmatsyrenov, Oleg"]
[WhiteFideId "13306677"]
[BlackFideId "24115762"]
[WhiteElo "2584"]
[BlackElo "2396"]
[Result "1-0"]
[Round "05"]
[TimeControl "180+2"]
[Date "2023.05.16"]
[WhiteClock "0:01:25"]
[BlackClock "0:00:47"]

1. d4 {[%clk 0:03:00]}  c6 {[%clk 0:02:50]} 2. e4 {[%clk 0:03:00]}  a6 {[%clk 0:02:50]} 3. Bd3 {[%clk 0:02:57]}  b5 {[%clk 0:02:50]} 4. Nf3 {[%clk 0:02:56]}  Bb7 {[%clk 0:02:51]} 5. O-O {[%clk 0:02:56]}  g6 {[%clk 0:02:52]} 6. Bf4 {[%clk 0:02:50]}  Bg7 {[%clk 0:02:52]} 7. Re1 {[%clk 0:02:48]}  d6 {[%clk 0:02:47]} 8. e5 {[%clk 0:02:47]}  dxe5 {[%clk 0:02:34]} 9. dxe5 {[%clk 0:02:43]}  e6 {[%clk 0:02:31]} 10. Nc3 {[%clk 0:02:37]}  Ne7 {[%clk 0:02:31]} 11. Ne4 {[%clk 0:02:35]}  O-O {[%clk 0:02:31]} 12. Bg5 {[%clk 0:02:34]}  Qc7 {[%clk 0:02:26]} 13. Qc1 {[%clk 0:02:11]}  Nd5 {[%clk 0:02:23]} 14. b3 {[%clk 0:02:01]}  b4 {[%clk 0:02:15]} 15. Bc4 {[%clk 0:02:01]}  Nd7 {[%clk 0:02:13]} 16. Bxd5 {[%clk 0:01:55]}  cxd5 {[%clk 0:02:12]} 17. Nf6+ {[%clk 0:01:56]}  Nxf6 {[%clk 0:02:09]} 18. exf6 {[%clk 0:01:52]}  Bh8 {[%clk 0:02:09]} 19. Ne5 {[%clk 0:01:52]}  Rac8 {[%clk 0:02:02]} 20. Qf4 {[%clk 0:01:52]}  Qxc2 {[%clk 0:01:40]} 21. Rac1 {[%clk 0:01:29]}  Qf5 {[%clk 0:01:36]} 22. Ng4 {[%clk 0:01:29]}  Qxg4 {[%clk 0:00:58]} 23. Qxg4 {[%clk 0:01:28]}  Rxc1 {[%clk 0:00:59]} 24. Rxc1 {[%clk 0:01:28]}  Rd8 {[%clk 0:00:55]} 25. Qxb4 {[%clk 0:01:27]}  d4 {[%clk 0:00:53]} 26. Qxb7 {[%clk 0:01:26]}  Bxf6 {[%clk 0:00:53]} 27. Bxf6 {[%clk 0:01:25]}  d3 {[%clk 0:00:51]} 28. Rc8 {[%clk 0:01:25]}  Re8 {[%clk 0:00:47]} 29. Rxe8# {[%clk 0:01:25]} 1-0


[Site "https://www.chess.com"]

[Event "Titled Tuesday Blitz May 16 Late 2023"]
[White "Ibarra Jerez, Jose Carlos"]
[Black "Rastbod, Ali"]
[WhiteFideId "2226332"]
[BlackFideId "12567477"]
[WhiteElo "2638"]
[BlackElo "2274"]
[Result "1-0"]
[Round "05"]
[TimeControl "180+2"]
[Date "2023.05.16"]
[WhiteClock "0:00:03"]
[BlackClock "0:00:00"]

1. e4 {[%clk 0:02:58]}  e6 {[%clk 0:03:00]} 2. d4 {[%clk 0:02:57]}  d5 {[%clk 0:03:01]} 3. Nd2 {[%clk 0:02:57]}  Be7 {[%clk 0:03:00]} 4. e5 {[%clk 0:02:57]}  c5 {[%clk 0:03:00]} 5. c3 {[%clk 0:02:57]}  cxd4 {[%clk 0:03:00]} 6. cxd4 {[%clk 0:02:57]}  Qb6 {[%clk 0:03:01]} 7. Ndf3 {[%clk 0:02:51]}  Bd7 {[%clk 0:03:00]} 8. Bd3 {[%clk 0:02:35]}  Bb5 {[%clk 0:02:52]} 9. Ne2 {[%clk 0:02:33]}  Bb4+ {[%clk 0:02:48]} 10. Kf1 {[%clk 0:02:32]}  Nc6 {[%clk 0:02:36]} 11. g3 {[%clk 0:02:27]}  f6 {[%clk 0:02:26]} 12. Kg2 {[%clk 0:02:16]}  fxe5 {[%clk 0:02:05]} 13. dxe5 {[%clk 0:02:15]}  Nge7 {[%clk 0:01:34]} 14. Nf4 {[%clk 0:01:40]}  O-O {[%clk 0:00:56]} 15. Bxh7+ {[%clk 0:01:04]}  Kxh7 {[%clk 0:00:40]} 16. Ng5+ {[%clk 0:01:05]}  Kg8 {[%clk 0:00:37]} 17. Qh5 {[%clk 0:01:05]}  Rxf4 {[%clk 0:00:17]} 18. Qh7+ {[%clk 0:00:55]}  Kf8 {[%clk 0:00:17]} 19. Bxf4 {[%clk 0:00:30]}  Nd4 {[%clk 0:00:09]} 20. Be3 {[%clk 0:00:20]}  Nef5 {[%clk 0:00:08]} 21. Bxd4 {[%clk 0:00:14]}  Nxd4 {[%clk 0:00:05]} 22. Qh8+ {[%clk 0:00:14]}  Ke7 {[%clk 0:00:06]} 23. Qxg7+ {[%clk 0:00:13]}  Kd8 {[%clk 0:00:06]} 24. Rac1 {[%clk 0:00:10]}  Bc6 {[%clk 0:00:06]} 25. Qg8+ {[%clk 0:00:08]}  Kd7 {[%clk 0:00:04]} 26. Qxa8 {[%clk 0:00:08]}  Ne2 {[%clk 0:00:03]} 27. Qg8 {[%clk 0:00:07]}  d4+ {[%clk 0:00:02]} 28. Rxc6 {[%clk 0:00:06]}  Qxc6+ {[%clk 0:00:02]} 29. Nf3 {[%clk 0:00:07]}  Qe4 {[%clk 0:00:02]} 30. Qf7+ {[%clk 0:00:06]}  Kd8 {[%clk 0:00:01]} 31. Rd1 {[%clk 0:00:06]}  d3 {[%clk 0:00:02]} 32. Qxe6 {[%clk 0:00:04]}  d2 {[%clk 0:00:01]} 33. Qb3 {[%clk 0:00:02]}  a5 {[%clk 0:00:01]} 34. Qe3 {[%clk 0:00:02]}  Nf4+ {[%clk 0:00:02]} 35. gxf4 {[%clk 0:00:02]}  Qg6+ {[%clk 0:00:02]} 36. Kf1 {[%clk 0:00:02]}  Qg5 {[%clk 0:00:03]} 37. Rxd2+ {[%clk 0:00:02]}  Bxd2 {[%clk 0:00:00]} 38. Qxd2+ {[%clk 0:00:03]} 1-0


[Site "https://www.chess.com"]

[Event "Titled Tuesday Blitz May 16 Late 2023"]
[White "Sun, Rick"]
[Black "Matlakov, Maxim"]
[WhiteFideId "30909481"]
[BlackFideId "4168003"]
[WhiteElo "2169"]
[BlackElo "2666"]
[Result "1-0"]
[Round "05"]
[TimeControl "180+2"]
[Date "2023.05.16"]
[WhiteClock "0:00:13"]
[BlackClock "0:00:00"]

1. d4 {[%clk 0:03:00]}  Nf6 {[%clk 0:02:57]} 2. Nc3 {[%clk 0:03:01]}  d5 {[%clk 0:02:55]} 3. Bf4 {[%clk 0:03:01]}  Bf5 {[%clk 0:02:48]} 4. e3 {[%clk 0:03:00]}  e6 {[%clk 0:02:45]} 5. f3 {[%clk 0:02:59]}  Bb4 {[%clk 0:02:38]} 6. g4 {[%clk 0:02:58]}  Bg6 {[%clk 0:02:38]} 7. h4 {[%clk 0:02:57]}  h6 {[%clk 0:02:32]} 8. Bd3 {[%clk 0:02:57]}  Bxd3 {[%clk 0:02:31]} 9. Qxd3 {[%clk 0:02:58]}  c5 {[%clk 0:02:30]} 10. Ne2 {[%clk 0:02:49]}  Nc6 {[%clk 0:02:29]} 11. O-O-O {[%clk 0:02:31]}  c4 {[%clk 0:02:24]} 12. Qd2 {[%clk 0:02:31]}  b5 {[%clk 0:02:20]} 13. g5 {[%clk 0:02:28]}  Nh5 {[%clk 0:02:19]} 14. g6 {[%clk 0:02:26]}  f5 {[%clk 0:02:14]} 15. e4 {[%clk 0:02:23]}  Ne7 {[%clk 0:01:45]} 16. Be5 {[%clk 0:01:43]}  Nxg6 {[%clk 0:01:37]} 17. Rhg1 {[%clk 0:01:25]}  Nxe5 {[%clk 0:01:05]} 18. dxe5 {[%clk 0:01:26]}  fxe4 {[%clk 0:01:04]} 19. fxe4 {[%clk 0:01:20]}  Bc5 {[%clk 0:00:43]} 20. Rg6 {[%clk 0:01:14]}  Kf7 {[%clk 0:00:36]} 21. Rg4 {[%clk 0:00:56]}  d4 {[%clk 0:00:30]} 22. Rf1+ {[%clk 0:00:43]}  Kg8 {[%clk 0:00:30]} 23. Nxb5 {[%clk 0:00:43]}  d3 {[%clk 0:00:29]} 24. Nf4 {[%clk 0:00:38]}  Nxf4 {[%clk 0:00:25]} 25. Qxf4 {[%clk 0:00:39]}  Qe7 {[%clk 0:00:17]} 26. Nd6 {[%clk 0:00:19]}  Kh7 {[%clk 0:00:17]} 27. Qf7 {[%clk 0:00:18]}  Be3+ {[%clk 0:00:06]} 28. Kd1 {[%clk 0:00:16]}  Qxf7 {[%clk 0:00:05]} 29. Rxf7 {[%clk 0:00:16]}  Rhg8 {[%clk 0:00:05]} 30. Nxc4 {[%clk 0:00:12]}  dxc2+ {[%clk 0:00:06]} 31. Kxc2 {[%clk 0:00:12]}  Bd4 {[%clk 0:00:07]} 32. Kd3 {[%clk 0:00:11]}  Rad8 {[%clk 0:00:07]} 33. Kc2 {[%clk 0:00:09]}  a6 {[%clk 0:00:06]} 34. b3 {[%clk 0:00:09]}  Kh8 {[%clk 0:00:06]} 35. h5 {[%clk 0:00:10]}  Rc8 {[%clk 0:00:05]} 36. Rg6 {[%clk 0:00:10]}  Bxe5 {[%clk 0:00:06]} 37. Rxe6 {[%clk 0:00:10]}  Ba1 {[%clk 0:00:04]} 38. Kb1 {[%clk 0:00:10]}  Bd4 {[%clk 0:00:04]} 39. Rd6 {[%clk 0:00:10]}  Bc3 {[%clk 0:00:04]} 40. Rdd7 {[%clk 0:00:10]}  Rce8 {[%clk 0:00:03]} 41. Nd6 {[%clk 0:00:09]}  Be5 {[%clk 0:00:03]} 42. Nxe8 {[%clk 0:00:09]}  Rxe8 {[%clk 0:00:03]} 43. Rfe7 {[%clk 0:00:10]}  Rxe7 {[%clk 0:00:03]} 44. Rxe7 {[%clk 0:00:11]}  Bf6 {[%clk 0:00:03]} 45. Re6 {[%clk 0:00:11]}  Bd4 {[%clk 0:00:02]} 46. Rxa6 {[%clk 0:00:11]}  g5 {[%clk 0:00:02]} 47. Kc2 {[%clk 0:00:12]}  g4 {[%clk 0:00:00]} 48. Rg6 {[%clk 0:00:13]} 1-0


[Site "https://www.chess.com"]

[Event "Titled Tuesday Blitz May 16 Late 2023"]
[White "Tang, Andrew"]
[Black "Tsvetkov, Andrey"]
[WhiteFideId "2059630"]
[BlackFideId "34139360"]
[WhiteElo "2596"]
[BlackElo "2296"]
[Result "1-0"]
[Round "05"]
[TimeControl "180+2"]
[Date "2023.05.16"]
[WhiteClock "0:00:09"]
[BlackClock "0:00:01"]

1. d4 {[%clk 0:02:56]}  d5 {[%clk 0:02:59]} 2. Bf4 {[%clk 0:02:56]}  c5 {[%clk 0:02:59]} 3. e3 {[%clk 0:02:52]}  cxd4 {[%clk 0:02:57]} 4. exd4 {[%clk 0:02:53]}  Nc6 {[%clk 0:02:58]} 5. Nf3 {[%clk 0:02:53]}  f6 {[%clk 0:02:36]} 6. c4 {[%clk 0:02:53]}  g5 {[%clk 0:02:31]} 7. cxd5 {[%clk 0:02:39]}  Qxd5 {[%clk 0:02:28]} 8. Nc3 {[%clk 0:02:38]}  Qa5 {[%clk 0:02:10]} 9. Bg3 {[%clk 0:01:56]}  g4 {[%clk 0:01:29]} 10. d5 {[%clk 0:01:40]}  gxf3 {[%clk 0:01:09]} 11. dxc6 {[%clk 0:01:35]}  bxc6 {[%clk 0:01:10]} 12. Qxf3 {[%clk 0:01:34]}  Bd7 {[%clk 0:00:57]} 13. Bc4 {[%clk 0:01:11]}  Qf5 {[%clk 0:00:49]} 14. Qe2 {[%clk 0:01:05]}  Nh6 {[%clk 0:00:42]} 15. O-O {[%clk 0:00:49]}  Nf7 {[%clk 0:00:32]} 16. Rad1 {[%clk 0:00:41]}  Bh6 {[%clk 0:00:28]} 17. Rfe1 {[%clk 0:00:28]}  O-O {[%clk 0:00:23]} 18. Qxe7 {[%clk 0:00:27]}  Rae8 {[%clk 0:00:23]} 19. Rxd7 {[%clk 0:00:15]}  Rxe7 {[%clk 0:00:14]} 20. Rexe7 {[%clk 0:00:16]}  Kh8 {[%clk 0:00:10]} 21. Bxf7 {[%clk 0:00:11]}  Qc2 {[%clk 0:00:10]} 22. h4 {[%clk 0:00:10]}  Qxb2 {[%clk 0:00:09]} 23. Bb3 {[%clk 0:00:09]}  Qc1+ {[%clk 0:00:01]} 24. Kh2 {[%clk 0:00:09]} 1-0


[Site "https://www.chess.com"]

[Event "Titled Tuesday Blitz May 16 Late 2023"]
[White "Goltsev, Dmitry"]
[Black "Rustemov, Alexander"]
[WhiteFideId "24176710"]
[BlackFideId "4119002"]
[WhiteElo "2356"]
[BlackElo "2976"]
[Result "1/2-1/2"]
[Round "05"]
[TimeControl "180+2"]
[Date "2023.05.16"]
[WhiteClock "0:00:05"]
[BlackClock "0:00:07"]

1. e4 {[%clk 0:03:00]}  e6 {[%clk 0:02:59]} 2. d4 {[%clk 0:02:58]}  d5 {[%clk 0:03:00]} 3. exd5 {[%clk 0:02:58]}  exd5 {[%clk 0:03:00]} 4. Nf3 {[%clk 0:02:59]}  Bf5 {[%clk 0:03:00]} 5. c4 {[%clk 0:02:59]}  Bxb1 {[%clk 0:02:59]} 6. Rxb1 {[%clk 0:02:58]}  Bb4+ {[%clk 0:03:00]} 7. Bd2 {[%clk 0:02:56]}  Bxd2+ {[%clk 0:03:00]} 8. Qxd2 {[%clk 0:02:56]}  Nf6 {[%clk 0:03:01]} 9. Bd3 {[%clk 0:02:55]}  O-O {[%clk 0:02:59]} 10. O-O {[%clk 0:02:55]}  dxc4 {[%clk 0:02:58]} 11. Bxc4 {[%clk 0:02:56]}  Nbd7 {[%clk 0:02:58]} 12. Rfe1 {[%clk 0:02:52]}  Nb6 {[%clk 0:02:57]} 13. Bb3 {[%clk 0:02:52]}  c6 {[%clk 0:02:57]} 14. Ne5 {[%clk 0:02:51]}  Nbd5 {[%clk 0:02:55]} 15. Qg5 {[%clk 0:02:51]}  h6 {[%clk 0:02:52]} 16. Qg3 {[%clk 0:02:50]}  Qd6 {[%clk 0:02:50]} 17. Rbd1 {[%clk 0:02:39]}  Rad8 {[%clk 0:02:49]} 18. Nc4 {[%clk 0:02:32]}  Qxg3 {[%clk 0:02:48]} 19. hxg3 {[%clk 0:02:33]}  Rd7 {[%clk 0:02:39]} 20. Re2 {[%clk 0:02:22]}  Rfd8 {[%clk 0:02:38]} 21. Ne5 {[%clk 0:02:22]}  Re7 {[%clk 0:02:35]} 22. Rde1 {[%clk 0:02:18]}  Rc7 {[%clk 0:02:26]} 23. Nd3 {[%clk 0:02:12]}  g6 {[%clk 0:02:20]} 24. a3 {[%clk 0:02:05]}  Kg7 {[%clk 0:02:19]} 25. Nc5 {[%clk 0:01:52]}  h5 {[%clk 0:02:12]} 26. Bxd5 {[%clk 0:01:47]}  Nxd5 {[%clk 0:02:07]} 27. Re8 {[%clk 0:01:45]}  Rxe8 {[%clk 0:02:02]} 28. Rxe8 {[%clk 0:01:46]}  b6 {[%clk 0:01:57]} 29. Nd3 {[%clk 0:01:45]}  Re7 {[%clk 0:01:55]} 30. Rxe7 {[%clk 0:01:44]}  Nxe7 {[%clk 0:01:56]} 31. Kf1 {[%clk 0:01:39]}  Kf6 {[%clk 0:01:55]} 32. Ne5 {[%clk 0:01:30]}  Ke6 {[%clk 0:01:47]} 33. Ke2 {[%clk 0:01:29]}  f6 {[%clk 0:01:44]} 34. Nc4 {[%clk 0:01:24]}  g5 {[%clk 0:01:31]} 35. Kd3 {[%clk 0:01:20]}  Ng6 {[%clk 0:01:25]} 36. a4 {[%clk 0:01:05]}  f5 {[%clk 0:01:24]} 37. b4 {[%clk 0:00:58]}  Ne7 {[%clk 0:01:15]} 38. b5 {[%clk 0:00:53]}  Nd5 {[%clk 0:01:06]} 39. bxc6 {[%clk 0:00:45]}  Nb4+ {[%clk 0:01:06]} 40. Kc3 {[%clk 0:00:45]}  Nxc6 {[%clk 0:01:07]} 41. Ne3 {[%clk 0:00:44]}  Ne7 {[%clk 0:01:04]} 42. Kc4 {[%clk 0:00:43]}  a6 {[%clk 0:01:04]} 43. d5+ {[%clk 0:00:40]}  Ke5 {[%clk 0:01:03]} 44. f4+ {[%clk 0:00:34]}  gxf4 {[%clk 0:00:57]} 45. gxf4+ {[%clk 0:00:35]}  Kd6 {[%clk 0:00:47]} 46. g3 {[%clk 0:00:35]}  b5+ {[%clk 0:00:26]} 47. axb5 {[%clk 0:00:31]}  axb5+ {[%clk 0:00:26]} 48. Kxb5 {[%clk 0:00:30]}  Nxd5 {[%clk 0:00:26]} 49. Nxf5+ {[%clk 0:00:30]}  Ke6 {[%clk 0:00:19]} 50. Ng7+ {[%clk 0:00:13]}  Kd6 {[%clk 0:00:19]} 51. Nxh5 {[%clk 0:00:12]}  Ne3 {[%clk 0:00:20]} 52. Kb4 {[%clk 0:00:08]}  Kd5 {[%clk 0:00:20]} 53. Nf6+ {[%clk 0:00:06]}  Kd4 {[%clk 0:00:20]} 54. g4 {[%clk 0:00:06]}  Ng2 {[%clk 0:00:18]} 55. f5 {[%clk 0:00:03]}  Ke5 {[%clk 0:00:18]} 56. Nd7+ {[%clk 0:00:04]}  Kd6 {[%clk 0:00:18]} 57. Nc5 {[%clk 0:00:04]}  Ne3 {[%clk 0:00:17]} 58. Ne4+ {[%clk 0:00:04]}  Ke5 {[%clk 0:00:17]} 59. f6 {[%clk 0:00:04]}  Nd5+ {[%clk 0:00:08]} 60. Kc4 {[%clk 0:00:03]}  Nxf6 {[%clk 0:00:09]} 61. g5 {[%clk 0:00:03]}  Nxe4 {[%clk 0:00:09]} 62. g6 {[%clk 0:00:03]}  Nf6 {[%clk 0:00:06]} 63. g7 {[%clk 0:00:04]}  Ng8 {[%clk 0:00:06]} 64. Kc5 {[%clk 0:00:04]}  Kf6 {[%clk 0:00:07]} 65. Kc6 {[%clk 0:00:05]}  Kxg7 {[%clk 0:00:07]} 1/2-1/2


[Site "https://www.chess.com"]

[Event "Titled Tuesday Blitz May 16 Late 2023"]
[White "Rodshtein, Maxim"]
[Black "Kourkoulos-Arditis, Stamatis"]
[WhiteFideId "2806851"]
[BlackFideId "4221990"]
[WhiteElo "2555"]
[BlackElo "2400"]
[Result "1-0"]
[Round "05"]
[TimeControl "180+2"]
[Date "2023.05.16"]
[WhiteClock "0:00:44"]
[BlackClock "0:00:00"]

1. c4 {[%clk 0:03:00]}  Nf6 {[%clk 0:02:54]} 2. Nc3 {[%clk 0:02:59]}  g6 {[%clk 0:02:53]} 3. e4 {[%clk 0:02:59]}  d6 {[%clk 0:02:53]} 4. d4 {[%clk 0:02:59]}  Bg7 {[%clk 0:02:54]} 5. Nge2 {[%clk 0:02:57]}  O-O {[%clk 0:02:52]} 6. Ng3 {[%clk 0:02:57]}  e5 {[%clk 0:02:52]} 7. d5 {[%clk 0:02:57]}  h5 {[%clk 0:02:53]} 8. Bg5 {[%clk 0:02:55]}  Qe8 {[%clk 0:02:50]} 9. Bd3 {[%clk 0:02:47]}  Nh7 {[%clk 0:02:46]} 10. Be3 {[%clk 0:02:42]}  h4 {[%clk 0:02:44]} 11. Nf1 {[%clk 0:02:32]}  f5 {[%clk 0:02:20]} 12. h3 {[%clk 0:02:30]}  a5 {[%clk 0:02:05]} 13. Nh2 {[%clk 0:02:27]}  Na6 {[%clk 0:02:04]} 14. Nf3 {[%clk 0:02:26]}  Qe7 {[%clk 0:02:02]} 15. Qe2 {[%clk 0:02:20]}  Nb4 {[%clk 0:01:55]} 16. Bb1 {[%clk 0:02:19]}  Bd7 {[%clk 0:01:53]} 17. a3 {[%clk 0:02:19]}  Na6 {[%clk 0:01:52]} 18. Bc2 {[%clk 0:02:19]}  Bf6 {[%clk 0:01:20]} 19. O-O-O {[%clk 0:02:16]}  f4 {[%clk 0:01:09]} 20. Bd2 {[%clk 0:02:15]}  Nc5 {[%clk 0:01:09]} 21. Kb1 {[%clk 0:02:15]}  a4 {[%clk 0:01:09]} 22. Ne1 {[%clk 0:02:01]}  Rfb8 {[%clk 0:01:04]} 23. Nd3 {[%clk 0:02:01]}  b6 {[%clk 0:00:53]} 24. Be1 {[%clk 0:01:57]}  Ng5 {[%clk 0:00:46]} 25. f3 {[%clk 0:01:57]}  Nf7 {[%clk 0:00:46]} 26. Na2 {[%clk 0:01:52]}  Nd8 {[%clk 0:00:44]} 27. Bf2 {[%clk 0:01:51]}  Ndb7 {[%clk 0:00:43]} 28. Nc3 {[%clk 0:01:44]}  Qe8 {[%clk 0:00:27]} 29. Nb4 {[%clk 0:01:38]}  Na5 {[%clk 0:00:26]} 30. Nb5 {[%clk 0:01:37]}  Rb7 {[%clk 0:00:21]} 31. Nc3 {[%clk 0:01:26]}  Nab3 {[%clk 0:00:21]} 32. Ka2 {[%clk 0:01:25]}  Nd4 {[%clk 0:00:21]} 33. Bxd4 {[%clk 0:01:23]}  exd4 {[%clk 0:00:21]} 34. Nb5 {[%clk 0:01:22]}  Bxb5 {[%clk 0:00:18]} 35. cxb5 {[%clk 0:01:23]}  Be5 {[%clk 0:00:15]} 36. Nc6 {[%clk 0:01:20]}  Rbb8 {[%clk 0:00:14]} 37. Qf2 {[%clk 0:01:12]}  g5 {[%clk 0:00:13]} 38. Nxd4 {[%clk 0:01:12]}  Bxd4 {[%clk 0:00:13]} 39. Qxd4 {[%clk 0:01:12]}  Qxb5 {[%clk 0:00:11]} 40. e5 {[%clk 0:01:08]}  Re8 {[%clk 0:00:09]} 41. e6 {[%clk 0:01:07]}  Rf8 {[%clk 0:00:07]} 42. Rhe1 {[%clk 0:01:01]}  Rae8 {[%clk 0:00:07]} 43. Qc3 {[%clk 0:00:58]}  Re7 {[%clk 0:00:06]} 44. Rd4 {[%clk 0:00:58]}  Qa6 {[%clk 0:00:04]} 45. Bb1 {[%clk 0:00:48]}  Qb5 {[%clk 0:00:04]} 46. Rb4 {[%clk 0:00:45]}  Qa6 {[%clk 0:00:00]} 47. Qc2 {[%clk 0:00:44]} 1-0


[Site "https://www.chess.com"]